bitfinex/quotes_BTCUSD_20220731
["timestamp","ask_amount","ask_price","bid_price","bid_amount"]
[1659271744542,0.303578,23800.0,23798.0,3.00260155]
[1659271744760,0.5864558,23801.0,23798.0,3.00260155]
[1659271744983,0.303578,23800.0,23798.0,3.00260155]
[1659271745268,0.02725879,23800.0,23798.0,3.00260155]
[1659271745479,0.5864558,23801.0,23798.0,3.00260155]
[1659271745698,0.05,23799.0,23798.0,3.00260155]
[1659271745901,0.5864558,23801.0,23798.0,3.00260155]
[1659271746124,0.303578,23800.0,23798.0,3.00260155]
[1659271746350,0.5864558,23801.0,23798.0,3.00260155]
[1659271746547,0.303578,23800.0,23798.0,3.00260155]
[1659271747006,0.5864558,23801.0,23798.0,3.00260155]
[1659271747208,0.303578,23800.0,23798.0,3.00260155]
[1659271747416,0.05,23799.0,23798.0,3.00260155]
[1659271747654,0.6364558,23801.0,23798.0,3.00260155]
[1659271747901,0.5864558,23801.0,23798.0,3.00260155]
[1659271748112,0.303578,23799.0,23798.0,3.00260155]
[1659271748309,0.5864558,23801.0,23798.0,3.00260155]
[1659271748567,0.02725879,23800.0,23798.0,3.00260155]
[1659271748767,0.5864558,23801.0,23798.0,3.00260155]
[1659271748889,0.303578,23800.0,23798.0,3.00260155]
[1659271749310,0.5864558,23801.0,23798.0,3.00260155]
[1659271749694,0.303578,23800.0,23798.0,3.00260155]
[1659271749894,0.5814558,23801.0,23798.0,3.00260155]
[1659271750159,0.303578,23800.0,23798.0,3.00260155]
[1659271750363,0.5814558,23801.0,23798.0,3.00260155]
[1659271750575,0.02725879,23800.0,23798.0,3.00260155]
[1659271750733,0.5814558,23801.0,23798.0,3.00260155]
[1659271750952,0.303578,23800.0,23798.0,3.00260155]
[1659271752069,0.65871459,23801.0,23798.0,3.00260155]
[1659271752272,0.513653,23800.0,23798.0,3.00260155]
[1659271752604,0.303578,23799.0,23798.0,3.00260155]
[1659271752860,0.5814558,23801.0,23798.0,3.00260155]
[1659271753125,0.12725879,23799.0,23798.0,3.00260155]
[1659271753330,0.53451612,23799.0,23798.0,3.00260155]
[1659271753556,0.83809412,23799.0,23798.0,3.00260155]
[1659271754306,0.88809412,23799.0,23798.0,3.00260155]
[1659271754949,0.83809412,23799.0,23798.0,3.00260155]
[1659271756368,0.303578,23799.0,23798.0,3.00260155]
[1659271756604,0.6314558,23801.0,23798.0,3.00260155]
[1659271756812,0.303578,23800.0,23798.0,3.00260155]
[1659271757043,0.303578,23799.0,23798.0,3.00260155]
[1659271757263,0.1,23800.0,23798.0,3.00260155]
[1659271757489,0.303578,23799.0,23798.0,3.00260155]
[1659271757950,0.05,23800.0,23798.0,3.00260155]
[1659271758172,0.303578,23799.0,23798.0,3.00260155]
[1659271758381,1.03871313,23801.0,23798.0,3.00260155]
[1659271758382,0.353578,23800.0,23798.0,3.00260155]
[1659271758834,0.43083679,23799.0,23798.0,3.00260155]
[1659271759046,0.303578,23799.0,23798.0,3.00260155]
[1659271759345,0.353578,23800.0,23798.0,3.00260155]
[1659271759557,0.403578,23800.0,23798.0,3.00260155]
[1659271759778,0.303578,23799.0,23798.0,3.00260155]
[1659271760203,0.353578,23800.0,23798.0,3.00260155]
[1659271760427,0.303578,23799.0,23798.0,3.00260155]
[1659271760666,0.05,23800.0,23798.0,3.00260155]
[1659271760834,0.303578,23799.0,23798.0,3.00260155]
[1659271761523,0.303578,23800.0,23798.0,3.00260155]
[1659271762016,1.1880938,23799.0,23798.0,3.00260155]
[1659271762245,1.6301938,23799.0,23798.0,3.00260155]
[1659271762470,0.48083647,23799.0,23798.0,3.00260155]
[1659271762712,0.303578,23799.0,23798.0,3.00260155]
[1659271762933,0.5814558,23801.0,23798.0,3.00260155]
[1659271763224,0.5814558,23801.0,23799.0,0.303578]
[1659271763449,0.5814558,23801.0,23799.0,0.59319213]
[1659271763667,0.5814558,23801.0,23800.0,0.303578]
[1659271764155,0.5814558,23801.0,23799.0,0.303578]
[1659271764388,0.5814558,23801.0,23798.0,3.40985888]
[1659271764656,0.60871459,23801.0,23798.0,3.40985888]
[1659271764895,0.5814558,23801.0,23799.0,0.303578]
[1659271765115,0.5814558,23801.0,23800.0,0.303578]
[1659271765324,0.5814558,23801.0,23799.0,0.303578]
[1659271766476,0.5814558,23801.0,23799.0,1.303578]
[1659271766678,0.5814558,23801.0,23800.0,0.349991]
[1659271766915,0.5814558,23801.0,23800.0,0.30757031]
[1659271767353,0.5814558,23801.0,23800.0,0.71482764]
[1659271768529,0.5814558,23801.0,23800.0,1.71482764]
[1659271768759,0.5814558,23801.0,23800.0,2.74636764]
[1659271768993,0.5814558,23801.0,23800.0,3.04636764]
[1659271769216,0.5814558,23801.0,23800.0,3.09036764]
[1659271769667,0.5814558,23801.0,23800.0,2.79036764]
[1659271769904,0.5814558,23801.0,23800.0,2.75882764]
[1659271770138,0.5814558,23801.0,23800.0,2.79036764]
[1659271770610,0.001,23803.0,23801.0,0.4185442]
[1659271770890,0.001,23803.0,23802.0,1.06083533]
[1659271771126,0.001,23803.0,23802.0,0.71083533]
[1659271772982,0.001,23803.0,23802.0,0.40725733]
[1659271773212,0.001,23803.0,23802.0,0.76183533]
[1659271773902,0.14723,23803.0,23802.0,0.051]
[1659271774356,0.14723,23803.0,23802.0,1.401]
[1659271774357,0.001,23803.0,23802.0,1.401]
[1659271774580,0.001,23803.0,23802.0,1.35]
[1659271775086,0.001,23803.0,23802.0,1.83625733]
[1659271775793,0.001,23803.0,23802.0,1.429]
[1659271776478,0.001,23803.0,23802.0,1.35]
[1659271777145,0.001,23803.0,23802.0,1.39]
[1659271778471,0.001,23803.0,23802.0,1.35]
[1659271779140,0.001,23803.0,23802.0,1.388]
[1659271780370,0.001,23803.0,23802.0,1.35]
[1659271781042,0.001,23803.0,23802.0,1.388]
[1659271782887,0.001,23803.0,23802.0,1.35]
[1659271783101,0.001,23803.0,23802.0,1.388]
[1659271783306,0.001,23803.0,23802.0,1.691578]
[1659271783523,0.001,23803.0,23802.0,2.258978]
[1659271784435,0.001,23803.0,23802.0,2.62823533]
[1659271785084,0.001,23803.0,23802.0,2.66623533]
[1659271785767,0.001,23803.0,23802.0,2.258978]
[1659271785991,0.10128,23803.0,23802.0,1.388]
[1659271786633,0.10128,23803.0,23802.0,1.35]
[1659271786859,0.65576851,23803.0,23802.0,1.35]
[1659271787084,0.65576851,23803.0,23802.0,1.379]
[1659271787307,0.70576851,23803.0,23802.0,1.379]
[1659271787536,0.65576851,23803.0,23802.0,1.379]
[1659271788026,0.60576851,23803.0,23802.0,1.379]
[1659271789174,0.60576851,23803.0,23802.0,1.35]
[1659271789886,0.65576851,23803.0,23802.0,1.35]
[1659271790366,0.60576851,23803.0,23802.0,1.35]
[1659271791494,0.65576851,23803.0,23802.0,1.35]
[1659271791733,0.70576851,23803.0,23802.0,1.35]
[1659271791955,0.50548851,23803.0,23802.0,1.35]
[1659271795433,0.50548851,23803.0,23802.0,1.3671]
[1659271799134,0.50548851,23803.0,23802.0,1.3961]
[1659271800504,0.50548851,23803.0,23802.0,1.3671]
[1659271800987,0.50548851,23803.0,23802.0,1.77435733]
[1659271801217,0.50541666,23803.0,23802.0,2.10693533]
[1659271802627,0.50541666,23803.0,23802.0,1.3671]
[1659271803130,0.50541666,23803.0,23802.0,1.4111]
[1659271803826,0.91267399,23803.0,23802.0,1.4111]
[1659271804040,0.95011015,23803.0,23802.0,1.4111]
[1659271804258,1.00011015,23803.0,23802.0,1.4111]
[1659271804481,0.91253408,23803.0,23802.0,1.3671]
[1659271804713,0.91253408,23803.0,23802.0,1.36743229]
[1659271804714,0.96253408,23803.0,23802.0,1.36743229]
[1659271804950,0.96253408,23803.0,23802.0,1.3671]
[1659271805167,1.00011015,23803.0,23802.0,1.3671]
[1659271805393,0.96253408,23803.0,23802.0,1.3671]
[1659271805693,0.96253408,23803.0,23802.0,1.36743229]
[1659271805936,0.96253408,23803.0,23802.0,1.3671]
[1659271806162,1.01253408,23803.0,23802.0,1.3671]
[1659271806617,1.31611208,23803.0,23802.0,1.3671]
[1659271807082,1.26611208,23803.0,23802.0,1.3671]
[1659271807296,1.01253408,23803.0,23802.0,1.3671]
[1659271807759,0.91253408,23803.0,23802.0,1.3671]
[1659271808234,0.96253408,23803.0,23802.0,1.3671]
[1659271808665,1.21611208,23803.0,23802.0,1.3671]
[1659271808903,1.31611208,23803.0,23802.0,1.3671]
[1659271809359,1.31611208,23803.0,23802.0,1.45528391]
[1659271809664,1.47616508,23803.0,23802.0,1.45528391]
[1659271809765,2.22616508,23803.0,23802.0,1.45528391]
[1659271810241,2.22616508,23803.0,23801.0,1.2437542]
[1659271810242,1.32725847,23802.0,23801.0,1.2437542]
[1659271810475,2.4721738,23802.0,23801.0,1.2437542]
[1659271810694,1.10974987,23802.0,23801.0,1.2437542]
[1659271810918,1.05975019,23802.0,23801.0,1.2437542]
[1659271811144,1.13875019,23802.0,23801.0,1.2437542]
[1659271812339,1.08875019,23802.0,23801.0,1.2437542]
[1659271812550,0.42523407,23802.0,23801.0,1.2437542]
[1659271812767,0.42523407,23802.0,23801.0,1.24366002]
[1659271812970,0.42233116,23802.0,23801.0,1.24366002]
[1659271813284,0.50133116,23802.0,23801.0,1.24366002]
[1659271813969,0.55423407,23802.0,23801.0,1.24366002]
[1659271814200,0.50423407,23802.0,23801.0,1.24366002]
[1659271814597,0.42523407,23802.0,23801.0,1.24366002]
[1659271815098,0.8824914,23802.0,23801.0,1.24366002]
[1659271815341,1.0114914,23802.0,23801.0,1.24366002]
[1659271816466,1.2324914,23802.0,23801.0,1.24366002]
[1659271816681,0.9324914,23802.0,23801.0,1.24366002]
[1659271817117,1.2215464,23802.0,23801.0,1.24366002]
[1659271818279,1.0114914,23802.0,23801.0,1.24366002]
[1659271818925,0.9324914,23802.0,23801.0,1.24366002]
[1659271819155,1.0114914,23802.0,23801.0,1.24366002]
[1659271819842,1.2215404,23802.0,23801.0,1.24366002]
[1659271820529,1.1425404,23802.0,23801.0,1.24366002]
[1659271821157,1.2215404,23802.0,23801.0,1.24366002]
[1659271822007,1.0114914,23802.0,23801.0,1.24366002]
[1659271822437,0.9324914,23802.0,23801.0,1.24366002]
[1659271822655,1.2324914,23802.0,23801.0,1.24366002]
[1659271823115,1.3114914,23802.0,23801.0,1.24366002]
[1659271824755,1.3114914,23802.0,23801.0,0.48850002]
[1659271824955,1.3114914,23802.0,23797.0,0.00222419]
[1659271824956,0.04999968,23798.0,23797.0,0.00222419]
[1659271825191,0.04999968,23798.0,23790.0,0.36]
[1659271825192,1.73701501,23798.0,23790.0,0.36]
[1659271825408,0.4421,23796.0,23790.0,0.36]
[1659271825659,0.76083501,23795.0,23790.0,0.36]
[1659271825862,0.71083533,23794.0,23790.0,0.36]
[1659271826076,0.49133733,23795.0,23786.0,0.61001065]
[1659271826279,0.49133733,23795.0,23787.0,0.40725733]
[1659271826488,0.49133733,23795.0,23788.0,0.03156]
[1659271826706,0.49133733,23795.0,23788.0,0.43881733]
[1659271826941,0.96935879,23801.0,23788.0,0.43881733]
[1659271826942,1.06845879,23801.0,23790.0,0.303578]
[1659271827153,0.71083533,23800.0,23791.0,0.03156]
[1659271827355,0.71083533,23799.0,23791.0,0.03156]
[1659271827602,1.15253879,23801.0,23791.0,0.03156]
[1659271827603,0.71083533,23798.0,23791.0,0.03156]
[1659271827825,0.40725733,23798.0,23791.0,0.03156]
[1659271828924,0.40725733,23798.0,23791.0,0.03496649]
[1659271829147,0.93625701,23798.0,23791.0,0.03496649]
[1659271829373,0.303578,23794.0,23791.0,0.00340649]
[1659271829627,0.03757607,23793.0,23791.0,0.00340649]
[1659271829843,0.12725879,23792.0,23791.0,0.00340649]
[1659271830068,0.43083679,23792.0,23791.0,0.00340649]
[1659271830825,0.43083679,23792.0,23791.0,0.00508158]
[1659271831067,0.04999968,23795.0,23791.0,0.08508158]
[1659271831261,0.08408,23798.0,23791.0,0.08508158]
[1659271831515,0.303578,23797.0,23791.0,0.08508158]
[1659271832178,0.303578,23796.0,23791.0,0.08508158]
[1659271832380,0.49133733,23798.0,23791.0,0.08508158]
[1659271832381,0.303578,23797.0,23791.0,0.08508158]
[1659271832602,0.303578,23795.0,23791.0,0.08508158]
[1659271832714,0.34115407,23794.0,23791.0,0.08340649]
[1659271832914,0.303578,23793.0,23791.0,0.00340649]
[1659271833129,0.303578,23792.0,23791.0,0.00340649]
[1659271833362,0.03757607,23794.0,23791.0,0.00340649]
[1659271833560,0.303578,23793.0,23791.0,0.00340649]
[1659271833996,0.40725733,23796.0,23791.0,0.00340649]
[1659271834221,0.303578,23795.0,23791.0,0.00340649]
[1659271834442,0.303578,23794.0,23791.0,0.00340649]
[1659271834660,0.40725733,23796.0,23791.0,0.00340649]
[1659271834856,0.303578,23795.0,23791.0,0.00340649]
[1659271835058,0.40725733,23796.0,23791.0,0.06240649]
[1659271835059,0.303578,23794.0,23791.0,0.06240649]
[1659271835342,0.12725879,23792.0,23791.0,0.06240649]
[1659271835575,0.45725733,23796.0,23791.0,0.06240649]
[1659271835798,0.303578,23795.0,23791.0,0.06240649]
[1659271836032,0.303578,23794.0,23791.0,0.06240649]
[1659271836304,0.303578,23795.0,23791.0,0.06240649]
[1659271836497,0.303578,23793.0,23792.0,0.00327316]
[1659271837227,0.303578,23793.0,23792.0,0.07627316]
[1659271838248,0.303578,23793.0,23792.0,0.073]
[1659271838519,0.40725733,23796.0,23791.0,0.00340649]
[1659271838730,0.303578,23795.0,23791.0,0.00340649]
[1659271838925,0.303578,23794.0,23791.0,0.00340649]
[1659271839035,0.303578,23795.0,23791.0,0.00340649]
[1659271839278,0.53625733,23796.0,23791.0,0.00340649]
[1659271839279,0.33083679,23794.0,23791.0,0.00340649]
[1659271839505,0.02725879,23794.0,23791.0,0.00340649]
[1659271840467,0.05,23792.0,23791.0,0.00340649]
[1659271840680,0.03757607,23793.0,23791.0,0.00340649]
[1659271840878,0.353578,23796.0,23791.0,0.00340649]
[1659271840995,0.303578,23795.0,23791.0,0.08040649]
[1659271841404,0.34115407,23794.0,23791.0,0.08040649]
[1659271841601,0.3101,23797.0,23791.0,0.08040649]
[1659271841833,0.303578,23796.0,23791.0,0.08040649]
[1659271842035,0.303578,23795.0,23791.0,0.08040649]
[1659271842257,0.303578,23794.0,23791.0,0.08040649]
[1659271842458,0.303578,23793.0,23791.0,0.08040649]
[1659271842725,0.03757607,23794.0,23791.0,0.08040649]
[1659271842972,0.03757607,23794.0,23791.0,0.00667979]
[1659271843110,0.303578,23793.0,23791.0,0.07567979]
[1659271843812,0.303578,23793.0,23791.0,0.07240649]
[1659271843991,0.03467316,23794.0,23791.0,0.07567979]
[1659271844191,0.303578,23792.0,23791.0,0.07567979]
[1659271844423,0.03757607,23794.0,23791.0,0.07240649]
[1659271844608,0.303578,23797.0,23791.0,0.07240649]
[1659271844945,0.353578,23797.0,23791.0,0.00340649]
[1659271845141,0.353578,23797.0,23791.0,0.06240649]
[1659271845357,0.303578,23796.0,23791.0,0.06240649]
[1659271845558,0.353578,23797.0,23791.0,0.06240649]
[1659271845995,0.303578,23796.0,23791.0,0.06240649]
[1659271846313,0.353578,23797.0,23791.0,0.00340649]
[1659271846529,0.303578,23796.0,23791.0,0.00340649]
[1659271846809,0.353578,23797.0,23791.0,0.00340649]
[1659271847024,0.382578,23796.0,23791.0,0.00340649]
[1659271848598,0.303578,23796.0,23791.0,0.00340649]
[1659271848811,0.210104,23796.0,23791.0,0.00340649]
[1659271849021,0.303578,23795.0,23791.0,0.00340649]
[1659271849245,0.289104,23796.0,23791.0,0.00340649]
[1659271849415,0.303578,23795.0,23792.0,0.00327316]
[1659271849630,0.303578,23794.0,23791.0,0.00340649]
[1659271849837,0.06473684,23795.0,23791.0,0.00340649]
[1659271850423,0.06473684,23795.0,23792.0,0.00327316]
[1659271850720,0.02725879,23795.0,23792.0,0.00327316]
[1659271851253,0.02725879,23795.0,23792.0,0.03627316]
[1659271851481,0.303578,23796.0,23792.0,0.03627316]
[1659271851694,0.303578,23795.0,23792.0,0.03627316]
[1659271851917,0.210092,23797.0,23792.0,0.03627316]
[1659271852142,0.303578,23796.0,23792.0,0.03627316]
[1659271852370,0.303578,23795.0,23792.0,0.03627316]
[1659271852609,0.303578,23794.0,23792.0,0.00327316]
[1659271852838,0.210092,23797.0,23792.0,0.00327316]
[1659271853051,0.303578,23796.0,23792.0,0.00327316]
[1659271853265,0.03747806,23795.0,23792.0,0.03627316]
[1659271853481,0.03747806,23795.0,23792.0,0.033]
[1659271853910,0.34105606,23795.0,23792.0,0.033]
[1659271854118,0.03747806,23795.0,23792.0,0.03326168]
[1659271854595,0.03747806,23795.0,23792.0,0.00026168]
[1659271855078,0.303578,23796.0,23792.0,0.00026168]
[1659271855292,0.303578,23795.0,23792.0,0.03326168]
[1659271855518,0.260092,23797.0,23792.0,0.03326168]
[1659271855712,0.303578,23796.0,23792.0,0.03326168]
[1659271855963,0.34105606,23795.0,23792.0,0.03326168]
[1659271856178,0.303578,23796.0,23792.0,0.03326168]
[1659271856400,0.303578,23795.0,23792.0,0.03326168]
[1659271856626,0.303578,23796.0,23792.0,0.00026168]
[1659271856846,0.303578,23795.0,23792.0,0.00026168]
[1659271857061,0.303578,23794.0,23792.0,0.00026168]
[1659271857277,0.03747806,23795.0,23792.0,0.00026168]
[1659271857510,0.303578,23794.0,23791.0,0.00340649]
[1659271857727,0.24759006,23795.0,23792.0,0.033]
[1659271857934,0.303578,23794.0,23792.0,0.033]
[1659271858172,0.24759006,23795.0,23792.0,0.033]
[1659271858373,0.303578,23794.0,23792.0,0.033]
[1659271858577,0.03747806,23795.0,23792.0,0.033]
[1659271859348,0.303578,23794.0,23792.0,0.033]
[1659271859574,0.03747806,23795.0,23792.0,0.033]
[1659271860419,0.303578,23794.0,23791.0,0.00646683]
[1659271860716,0.03747806,23795.0,23791.0,0.00646683]
[1659271861158,0.03747806,23795.0,23791.0,0.06240649]
[1659271861358,0.04437,23792.0,23791.0,0.06240649]
[1659271861578,0.303578,23793.0,23791.0,0.06240649]
[1659271861782,0.43083679,23792.0,23791.0,0.06240649]
[1659271862011,0.12725879,23792.0,23791.0,0.06240649]
[1659271862204,0.43083679,23792.0,23791.0,0.06240649]
[1659271862420,0.43083679,23792.0,23791.0,0.00340649]
[1659271863201,0.43083679,23792.0,23791.0,0.08340649]
[1659271864519,0.43083679,23792.0,23791.0,0.00340649]
[1659271864746,0.91009701,23797.0,23791.0,0.00340649]
[1659271864961,0.71083533,23796.0,23791.0,0.00340649]
[1659271865173,0.303578,23795.0,23791.0,0.08340649]
[1659271865393,0.34105606,23794.0,23791.0,0.08340649]
[1659271865614,0.303578,23793.0,23791.0,0.08340649]
[1659271865899,0.303578,23792.0,23791.0,0.08340649]
[1659271866109,0.40725733,23796.0,23791.0,0.08340649]
[1659271866320,0.303578,23795.0,23791.0,0.08340649]
[1659271866563,0.303578,23794.0,23791.0,0.00340649]
[1659271866785,0.303578,23795.0,23791.0,0.00340649]
[1659271866992,0.34105606,23794.0,23791.0,0.00340649]
[1659271867224,0.05847806,23794.0,23791.0,0.05740649]
[1659271867612,0.303578,23793.0,23791.0,0.05740649]
[1659271867962,0.05847806,23794.0,23791.0,0.06281385]
[1659271868174,0.021,23794.0,23791.0,0.06281385]
[1659271868588,0.40725733,23796.0,23791.0,0.00881385]
[1659271868805,0.00290291,23794.0,23791.0,0.00881385]
[1659271868999,0.40725733,23796.0,23791.0,0.00881385]
[1659271869219,0.303578,23795.0,23791.0,0.08681385]
[1659271869436,0.303578,23794.0,23791.0,0.08681385]
[1659271869762,0.40725733,23796.0,23791.0,0.08140649]
[1659271870086,0.303578,23795.0,23791.0,0.08140649]
[1659271870326,0.303578,23794.0,23791.0,0.08140649]
[1659271870556,0.303578,23793.0,23792.0,0.000869]
[1659271870775,0.03747806,23794.0,23791.0,0.00340649]
[1659271871026,0.40725733,23796.0,23791.0,0.00340649]
[1659271871245,0.210097,23797.0,23792.0,0.079]
[1659271871246,0.303578,23795.0,23792.0,0.079]
[1659271871464,0.40725733,23797.0,23793.0,9.802e-05]
[1659271871697,0.303578,23796.0,23793.0,0.00096698]
[1659271871915,0.40725733,23797.0,23793.0,0.00096698]
[1659271871916,0.303578,23795.0,23793.0,0.00096698]
[1659271872139,0.40725733,23797.0,23792.0,0.079]
[1659271872140,0.303578,23794.0,23792.0,0.079]
[1659271872370,0.303578,23795.0,23792.0,0.079]
[1659271872596,0.303578,23794.0,23791.0,0.00340649]
[1659271872830,0.303578,23793.0,23791.0,0.00340649]
[1659271873048,0.03747806,23793.0,23791.0,0.00350451]
[1659271873254,0.03747806,23793.0,23792.0,0.01]
[1659271874449,0.03747806,23793.0,23791.0,0.00340649]
[1659271875120,0.03747806,23793.0,23791.0,0.08240649]
[1659271875869,0.03247806,23793.0,23791.0,0.08240649]
[1659271876159,0.05973685,23793.0,23791.0,0.08240649]
[1659271876315,0.36331485,23793.0,23791.0,0.08240649]
[1659271876531,0.303578,23792.0,23791.0,0.00340649]
[1659271876772,0.05973685,23793.0,23791.0,0.00340649]
[1659271876988,0.12725879,23792.0,23791.0,0.00340649]
[1659271877218,0.43083679,23792.0,23791.0,0.08240649]
[1659271877686,0.48083679,23792.0,23791.0,0.08240649]
[1659271878011,0.53083679,23792.0,23791.0,0.08240649]
[1659271878453,0.53083679,23792.0,23791.0,0.00340649]
[1659271878911,0.93809412,23792.0,23791.0,0.00340649]
[1659271879139,0.93809412,23792.0,23791.0,0.08340649]
[1659271879367,0.88809412,23792.0,23791.0,0.08340649]
[1659271879815,0.83809412,23792.0,23791.0,0.0832975]
[1659271880480,0.83809412,23792.0,23791.0,0.0032975]
[1659271881170,0.83809412,23792.0,23791.0,0.0772975]
[1659271881435,0.88809412,23792.0,23791.0,0.0772975]
[1659271882304,0.83809412,23792.0,23791.0,0.0772975]
[1659271882574,0.83809412,23792.0,23791.0,0.0032975]
[1659271883072,0.83809412,23792.0,23791.0,0.0772975]
[1659271883287,0.83809412,23792.0,23791.0,0.08239552]
[1659271883511,0.303578,23792.0,23791.0,0.08239552]
[1659271883734,0.5548,23795.0,23791.0,0.08239552]
[1659271883962,0.71083533,23794.0,23791.0,0.08239552]
[1659271884196,0.303578,23793.0,23791.0,0.08239552]
[1659271884411,0.02725879,23794.0,23791.0,0.08239552]
[1659271884625,0.303578,23793.0,23791.0,0.00839552]
[1659271884834,0.02725879,23794.0,23791.0,0.00839552]
[1659271885128,0.303578,23793.0,23791.0,0.08639552]
[1659271885564,0.02725879,23793.0,23791.0,0.08639552]
[1659271885776,1.522787,23798.0,23791.0,0.08639552]
[1659271885997,0.76083533,23797.0,23791.0,0.08639552]
[1659271886237,0.76083533,23796.0,23791.0,0.08639552]
[1659271886468,0.303578,23795.0,23791.0,0.00839552]
[1659271886699,0.303578,23794.0,23791.0,0.00839552]
[1659271886917,0.303578,23793.0,23791.0,0.00839552]
[1659271887124,0.12725879,23792.0,23791.0,0.0032975]
[1659271887241,0.03247805,23794.0,23791.0,0.0032975]
[1659271887958,0.33605605,23794.0,23791.0,0.0032975]
[1659271888093,0.303578,23793.0,23791.0,0.0032975]
[1659271888323,0.33605605,23794.0,23791.0,0.00926735]
[1659271888515,0.33605605,23794.0,23791.0,0.0032975]
[1659271888516,0.03247805,23794.0,23791.0,0.0032975]
[1659271889020,0.303578,23793.0,23791.0,0.0812975]
[1659271889257,0.303578,23793.0,23791.0,0.08726735]
[1659271889465,0.02725879,23793.0,23791.0,0.08726735]
[1659271889664,0.210114,23795.0,23791.0,0.08726735]
[1659271889891,0.33605605,23794.0,23791.0,0.08726735]
[1659271890101,0.303578,23793.0,23791.0,0.0812975]
[1659271890322,0.03247805,23794.0,23791.0,0.01416089]
[1659271890929,0.303578,23793.0,23791.0,0.01416089]
[1659271891149,0.210114,23795.0,23791.0,0.09216089]
[1659271891387,0.303578,23794.0,23791.0,0.09216089]
[1659271891596,0.353578,23794.0,23791.0,0.09216089]
[1659271892294,0.303578,23793.0,23791.0,0.09216089]
[1659271892516,0.02725879,23793.0,23791.0,0.09216089]
[1659271892789,0.260114,23795.0,23791.0,0.09216089]
[1659271893032,0.303578,23795.0,23791.0,0.01416089]
[1659271893236,0.303578,23794.0,23791.0,0.09316089]
[1659271893452,0.303578,23795.0,23791.0,0.09316089]
[1659271893669,0.303578,23794.0,23791.0,0.09316089]
[1659271893807,0.40725733,23796.0,23791.0,0.09316089]
[1659271894030,0.303578,23795.0,23791.0,0.09316089]
[1659271894239,0.45725733,23796.0,23791.0,0.09316089]
[1659271894432,0.303578,23795.0,23791.0,0.01416089]
[1659271894641,0.40725733,23796.0,23791.0,0.01416089]
[1659271894838,0.303578,23795.0,23791.0,0.01416089]
[1659271895021,0.382578,23795.0,23791.0,0.01416089]
[1659271895248,0.079,23795.0,23791.0,0.01416089]
[1659271895453,0.303578,23794.0,23791.0,0.01416089]
[1659271895686,0.079,23795.0,23791.0,0.01416089]
[1659271895891,0.303578,23794.0,23791.0,0.01416089]
[1659271896112,0.079,23795.0,23791.0,0.01416089]
[1659271896347,0.45725733,23796.0,23791.0,0.01416089]
[1659271896348,0.33315314,23794.0,23791.0,0.01416089]
[1659271896580,0.303578,23793.0,23791.0,0.0140117]
[1659271896780,0.66736733,23796.0,23791.0,0.0140117]
[1659271897031,0.303578,23795.0,23791.0,0.0920117]
[1659271897253,0.303578,23794.0,23791.0,0.0920117]
[1659271897457,0.303578,23793.0,23791.0,0.0920117]
[1659271897680,0.71736733,23796.0,23791.0,0.0920117]
[1659271897886,0.303578,23795.0,23791.0,0.0920117]
[1659271898104,0.303578,23794.0,23791.0,0.0920117]
[1659271898371,0.02725879,23793.0,23791.0,0.0920117]
[1659271898580,0.3636,23797.0,23791.0,0.0140117]
[1659271898581,0.4136,23797.0,23791.0,0.0140117]
[1659271898783,0.303578,23796.0,23791.0,0.0140117]
[1659271898913,0.303578,23795.0,23791.0,0.0140117]
[1659271899129,0.94985733,23797.0,23791.0,0.0140117]
[1659271899355,0.303578,23796.0,23791.0,0.0140117]
[1659271899563,0.303578,23795.0,23791.0,0.0140117]
[1659271899780,0.303578,23796.0,23791.0,0.0140117]
[1659271900014,0.303578,23795.0,23791.0,0.0140117]
[1659271900224,0.33605605,23794.0,23791.0,0.0140117]
[1659271900494,0.03247805,23794.0,23791.0,0.0140117]
[1659271900932,0.210104,23796.0,23791.0,0.0140117]
[1659271901130,0.303578,23795.0,23791.0,0.0880117]
[1659271901438,0.02725879,23794.0,23791.0,0.0880117]
[1659271901651,0.40725733,23797.0,23791.0,0.2980727]
[1659271901854,0.45725733,23797.0,23791.0,0.2980727]
[1659271902072,0.303578,23796.0,23791.0,0.2980727]
[1659271902454,0.40725733,23797.0,23791.0,0.2190727]
[1659271902859,0.45725733,23797.0,23791.0,0.2190727]
[1659271903110,0.58525733,23797.0,23791.0,0.0090117]
[1659271903319,0.303578,23796.0,23792.0,0.00346207]
[1659271903533,0.33790774,23795.0,23792.0,0.00346207]
[1659271903743,0.58525733,23797.0,23792.0,0.00346207]
[1659271903961,0.303578,23796.0,23792.0,0.00346207]
[1659271904216,0.303578,23794.0,23792.0,0.00346207]
[1659271904423,0.02725879,23794.0,23792.0,0.00346207]
[1659271904623,0.50725733,23797.0,23792.0,0.00346207]
[1659271904847,0.303578,23796.0,23792.0,0.00346207]
[1659271905059,0.50725733,23797.0,23792.0,0.00346207]
[1659271905060,0.303578,23795.0,23792.0,0.00346207]
[1659271905263,0.02725879,23795.0,23792.0,0.08246207]
[1659271905496,0.05,23797.0,23792.0,0.4897194]
[1659271905702,0.303578,23797.0,23792.0,0.4897194]
[1659271906137,0.303578,23796.0,23792.0,0.4897194]
[1659271906532,0.70258,23798.0,23792.0,0.4107194]
[1659271906780,0.303578,23797.0,23792.0,0.4107194]
[1659271906957,0.303578,23796.0,23792.0,0.4107194]
[1659271907215,0.303578,23795.0,23792.0,0.4107194]
[1659271907442,0.05,23794.0,23792.0,0.00346207]
[1659271907659,0.78058,23798.0,23792.0,0.00346207]
[1659271907868,0.303578,23797.0,23792.0,0.00346207]
[1659271908181,0.303578,23796.0,23792.0,0.00346207]
[1659271908425,0.02725879,23796.0,23792.0,0.4107194]
[1659271908623,0.08408,23798.0,23792.0,0.6207754]
[1659271909403,0.056,23796.0,23792.0,0.4107194]
[1659271909846,0.08325879,23796.0,23792.0,0.4107194]
[1659271910302,0.056,23796.0,23792.0,0.4107194]
[1659271910973,0.13408,23798.0,23792.0,0.4107194]
[1659271911211,0.077,23796.0,23792.0,0.4397194]
[1659271911430,0.077,23796.0,23793.0,0.303578]
[1659271911657,0.077,23796.0,23792.0,0.4397194]
[1659271911884,0.077,23796.0,23793.0,0.303578]
[1659271912182,0.077,23796.0,23792.0,0.4397194]
[1659271912402,0.077,23796.0,23792.0,0.44314163]
[1659271912634,0.08408,23798.0,23792.0,0.41414163]
[1659271912864,0.08408,23798.0,23793.0,0.00324633]
[1659271913335,0.077,23796.0,23793.0,0.00324633]
[1659271913551,0.077,23796.0,23793.0,0.41050366]